bitfinex/quotes_BTCUSD_20220304
["timestamp","ask_amount","ask_price","bid_price","bid_amount"]
[1646356808358,0.00135746,41249.0,41242.0,0.64062694]
[1646356808956,0.00135746,41249.0,41243.0,0.28864956]
[1646356809158,0.00135746,41249.0,41247.0,0.368459]
[1646356809360,0.00135746,41249.0,41247.0,0.413059]
[1646356809557,0.00135746,41249.0,41248.0,0.368459]
[1646356809806,0.00235746,41249.0,41248.0,0.368459]
[1646356810008,0.00185746,41249.0,41248.0,0.365459]
[1646356810805,0.00185746,41249.0,41248.0,0.368901]
[1646356811004,0.00085746,41249.0,41243.0,0.0446]
[1646356811206,0.00085746,41249.0,41244.0,0.368901]
[1646356812208,0.00085746,41249.0,41246.0,0.12]
[1646356812408,0.00085746,41249.0,41247.0,0.413501]
[1646356813863,0.00085746,41249.0,41247.0,0.416501]
[1646356814167,0.00085746,41249.0,41248.0,0.368901]
[1646356814364,0.00085746,41249.0,41248.0,0.413501]
[1646356815267,0.00035746,41249.0,41248.0,0.413501]
[1646356815665,0.00035746,41249.0,41248.0,0.406501]
[1646356815872,0.00035746,41249.0,41248.0,2.34036208]
[1646356816069,0.05,41264.0,41252.0,0.02401]
[1646356816269,0.05,41264.0,41259.0,0.74731]
[1646356816468,0.15712923,41268.0,41260.0,1.47615376]
[1646356816669,0.15712923,41268.0,41261.0,0.22356503]
[1646356816873,0.05,41275.0,41262.0,1.160746]
[1646356817220,2.03178041,41280.0,41263.0,0.01188656]
[1646356817221,1.54518041,41280.0,41263.0,0.01188656]
[1646356817414,1.54518041,41280.0,41266.0,1.092136]
[1646356817717,0.17024318,41279.0,41267.0,0.0446]
[1646356817915,0.27660974,41278.0,41267.0,0.0446]
[1646356818113,0.18161921,41271.0,41267.0,0.0446]
[1646356818314,0.18161921,41271.0,41268.0,0.368836]
[1646356818514,0.18161921,41271.0,41270.0,0.368836]
[1646356818715,0.18161921,41271.0,41270.0,0.413436]
[1646356818915,0.18161921,41271.0,41270.0,0.64295067]
[1646356819115,0.18161921,41271.0,41270.0,0.413436]
[1646356819315,0.18161921,41271.0,41270.0,0.0446]
[1646356819516,0.18161921,41271.0,41270.0,0.413436]
[1646356819720,0.18161921,41271.0,41265.0,0.002]
[1646356819721,0.06472927,41267.0,41265.0,0.002]
[1646356819916,0.95,41270.0,41265.0,0.002]
[1646356819917,0.03,41268.0,41265.0,0.002]
[1646356820120,0.01230688,41266.0,41265.0,0.002]
[1646356820316,0.20736737,41267.0,41265.0,0.00120211]
[1646356820517,0.61058029,41266.0,41255.0,0.2270813]
[1646356820715,0.20736737,41267.0,41256.0,0.368836]
[1646356820716,0.19780628,41261.0,41256.0,0.368836]
[1646356820961,0.03,41265.0,41256.0,0.368836]
[1646356821360,0.03,41265.0,41255.0,0.2270813]
[1646356821560,0.20736737,41267.0,41255.0,0.2270813]
[1646356821764,0.20736737,41267.0,41252.0,0.05378101]
[1646356821765,0.21887614,41259.0,41252.0,0.05378101]
[1646356821965,0.21887614,41259.0,41252.0,0.0446]
[1646356822764,0.21887614,41259.0,41251.0,0.004]
[1646356822963,0.21887614,41259.0,41245.0,0.4627]
[1646356822964,0.21396149,41252.0,41245.0,0.4627]
[1646356823160,0.2125134,41253.0,41246.0,0.5]
[1646356823363,0.02401,41262.0,41246.0,0.5]
[1646356823563,0.01173809,41261.0,41246.0,0.5]
[1646356823760,0.20030269,41255.0,41246.0,0.5]
[1646356823960,0.01173809,41261.0,41246.0,0.5]
[1646356824161,0.01385347,41262.0,41247.0,0.33376064]
[1646356824362,0.20765667,41259.0,41247.0,1.05706064]
[1646356824561,0.20765667,41259.0,41247.0,0.33376064]
[1646356824821,0.36459661,41259.0,41247.0,1.05706064]
[1646356825020,0.20765667,41259.0,41249.0,0.7233]
[1646356825216,0.20765667,41259.0,41251.0,0.368836]
[1646356825417,0.20765667,41259.0,41258.0,0.27223466]
[1646356826017,0.20765667,41259.0,41249.0,0.01391677]
[1646356826219,0.20765667,41259.0,41250.0,0.368836]
[1646356826617,0.20765667,41259.0,41251.0,0.33376064]
[1646356826817,0.20765667,41259.0,41251.0,0.34284011]
[1646356827019,0.20765667,41259.0,41252.0,0.368836]
[1646356827419,0.17948959,41257.0,41247.0,0.34586064]
[1646356827624,0.20765667,41259.0,41248.0,0.0446]
[1646356828670,0.20065954,41257.0,41248.0,0.0446]
[1646356829065,0.20065954,41257.0,41251.0,0.27085867]
[1646356829268,0.02514527,41267.0,41251.0,0.27085867]
[1646356829466,0.02514527,41267.0,41252.0,0.33376064]
[1646356829467,0.01245872,41267.0,41252.0,0.33376064]
[1646356830066,0.009368,41266.0,41251.0,0.27585867]
[1646356830370,0.2166215,41262.0,41251.0,0.005]
[1646356830969,0.20523307,41269.0,41249.0,1.05706064]
[1646356830970,0.20309307,41269.0,41249.0,1.05706064]
[1646356831168,0.134659,41269.0,41250.0,0.7679]
[1646356831369,0.18205015,41263.0,41258.0,0.25594103]
[1646356831568,0.110649,41269.0,41258.0,0.25594103]
[1646356831769,0.368836,41268.0,41259.0,0.0446]
[1646356832209,0.7622,41275.0,41259.0,0.7679]
[1646356832409,0.06064,41276.0,41260.0,1.06969154]
[1646356832607,0.21697588,41273.0,41261.0,0.0446]
[1646356833011,0.17143111,41269.0,41261.0,0.0446]
[1646356833407,0.06064,41276.0,41263.0,0.60455147]
[1646356833609,0.05,41279.0,41264.0,1.136736]
[1646356833810,0.05,41279.0,41266.0,0.7233]
[1646356834008,0.05,41279.0,41270.0,0.392846]
[1646356834210,0.4866,41288.0,41272.0,0.02401]
[1646356834410,0.19957785,41293.0,41287.0,0.23937781]
[1646356834615,0.19957785,41293.0,41285.0,0.0446]
[1646356834616,0.18546871,41293.0,41285.0,0.0446]
[1646356835512,0.121239,41294.0,41285.0,0.0446]
[1646356835513,0.121239,41294.0,41291.0,0.2752998]
[1646356835711,0.060605,41295.0,41292.0,0.413436]
[1646356835983,0.060605,41295.0,41285.0,0.01683042]
[1646356835984,0.060605,41295.0,41293.0,0.0446]
[1646356836176,0.060594,41300.0,41294.0,0.0446]
[1646356836376,0.060594,41300.0,41295.0,0.74719664]
[1646356836577,0.060594,41300.0,41297.0,0.368836]
[1646356836776,0.02945148,41309.0,41298.0,0.0446]
[1646356837175,0.02569828,41310.0,41298.0,0.0446]
[1646356837876,0.29873225,41302.0,41298.0,0.0446]
[1646356838083,0.38379466,41301.0,41298.0,0.0446]
[1646356838276,0.009368,41299.0,41298.0,0.0446]
[1646356838478,0.121183,41302.0,41293.0,0.004]
[1646356838677,0.121183,41302.0,41298.0,0.0446]
[1646356839280,0.35,41300.0,41283.0,0.70255293]
[1646356839578,0.13202829,41302.0,41289.0,0.0446]
[1646356839579,0.060598,41296.0,41289.0,0.0446]
[1646356839806,0.060598,41296.0,41290.0,0.413436]
[1646356840011,0.9488,41311.0,41294.0,0.17401]
[1646356840215,0.05,41311.0,41309.0,0.21085383]
[1646356840406,0.06732984,41319.0,41310.0,0.0446]
[1646356840612,0.121159,41312.0,41310.0,0.0446]
[1646356841007,0.37744858,41312.0,41310.0,0.0446]
[1646356841210,0.368836,41311.0,41310.0,0.0446]
[1646356841806,0.86168609,41310.0,41307.0,0.0446]
[1646356842008,0.368836,41309.0,41304.0,0.0446]
[1646356842206,0.86168609,41310.0,41304.0,0.0446]
[1646356842207,0.19664739,41305.0,41304.0,0.0446]
[1646356842606,0.62102324,41305.0,41304.0,0.0446]
[1646356843008,0.55611539,41305.0,41304.0,0.0446]
[1646356843213,0.75043305,41305.0,41304.0,0.0446]
[1646356844265,0.368836,41307.0,41304.0,0.0446]
[1646356844866,0.121159,41312.0,41304.0,0.0446]
[1646356844867,0.13391923,41312.0,41304.0,0.0446]
[1646356845068,0.060578,41312.0,41304.0,0.0446]
[1646356845268,0.28233568,41312.0,41306.0,0.24202854]
[1646356845470,0.26871079,41312.0,41306.0,0.24202854]
[1646356845667,0.26371079,41312.0,41306.0,0.24202854]
[1646356847409,0.055578,41312.0,41306.0,0.24202854]
[1646356847811,0.055578,41312.0,41306.0,0.24302854]
[1646356848417,0.055578,41312.0,41307.0,0.368836]
[1646356848621,0.055578,41312.0,41307.0,1.136736]
[1646356849414,0.055578,41312.0,41307.0,1.14652195]
[1646356851362,0.055578,41312.0,41307.0,1.136736]
[1646356851564,0.055578,41312.0,41309.0,0.01132335]
[1646356851764,0.055578,41312.0,41310.0,0.368836]
[1646356851962,0.19612982,41321.0,41309.0,0.00987003]
[1646356852162,0.060562,41318.0,41311.0,0.368836]
[1646356852363,0.060562,41318.0,41313.0,0.7233]
[1646356852563,0.060562,41318.0,41315.0,0.7233]
[1646356852764,0.060562,41318.0,41316.0,0.37943726]
[1646356852965,0.060562,41318.0,41316.0,0.26774819]
[1646356853163,0.060562,41318.0,41317.0,0.368836]
[1646356853364,0.060262,41318.0,41317.0,0.413436]
[1646356853766,0.04675722,41318.0,41317.0,0.413436]
[1646356855017,0.06620409,41327.0,41317.0,0.413436]
[1646356855018,0.060554,41323.0,41317.0,0.413436]
[1646356856011,0.060554,41323.0,41319.0,0.368836]
[1646356856212,0.060554,41323.0,41320.0,0.0446]
[1646356856418,0.060554,41323.0,41322.0,0.74731]
[1646356856615,0.05,41330.0,41324.0,0.74731]
[1646356856813,0.060544,41331.0,41327.0,0.368836]
[1646356857011,0.060544,41331.0,41328.0,0.0446]
[1646356857411,0.22082646,41331.0,41328.0,0.0446]
[1646356857812,0.22082646,41331.0,41328.0,0.0486]
[1646356858211,0.060544,41331.0,41328.0,0.0486]
[1646356858664,0.060544,41331.0,41329.0,0.368836]
[1646356859261,0.060544,41331.0,41330.0,0.368836]
[1646356859461,0.060544,41331.0,41329.0,0.38254806]
[1646356859662,0.060544,41331.0,41328.0,0.0446]
[1646356860562,0.32362804,41330.0,41328.0,0.0446]
[1646356860764,0.32362804,41330.0,41313.0,0.01242154]
[1646356860765,1.08218166,41329.0,41313.0,0.01242154]
[1646356860963,0.009368,41327.0,41314.0,0.01109156]
[1646356861164,0.15771065,41322.0,41315.0,0.01188323]
[1646356861362,0.060558,41323.0,41310.0,0.06861]
[1646356861363,0.060558,41323.0,41310.0,0.03570322]
[1646356861561,0.060558,41323.0,41320.0,0.27260756]
[1646356861767,0.060558,41323.0,41321.0,0.368836]
[1646356862062,0.18168,41330.0,41322.0,0.01009487]
[1646356862333,0.05,41332.0,41323.0,0.42260984]
[1646356862526,0.02632914,41339.0,41324.0,0.73347317]
[1646356862824,0.01252759,41338.0,41327.0,1.072136]
[1646356863026,0.060536,41334.0,41329.0,0.368836]
[1646356863224,0.060536,41334.0,41331.0,1.072136]
[1646356863434,0.060536,41334.0,41332.0,0.0446]
[1646356863629,0.01068093,41341.0,41333.0,1.32523427]
[1646356863827,0.05,41345.0,41335.0,0.7233]
[1646356863828,0.01318064,41344.0,41335.0,0.7233]
[1646356864026,0.05,41340.0,41337.0,0.7233]
[1646356864227,0.05,41340.0,41338.0,1.14617015]
[1646356864428,0.05,41340.0,41339.0,0.77861123]
[1646356864624,0.045061,41340.0,41339.0,1.136736]
[1646356865025,0.121038,41348.0,41341.0,0.7233]
[1646356865226,0.121038,41348.0,41335.0,0.02401]
[1646356865227,0.121038,41348.0,41342.0,1.136736]
[1646356865425,0.121038,41348.0,41343.0,0.0446]
[1646356865625,0.121038,41348.0,41344.0,0.368836]
[1646356865824,0.121038,41348.0,41345.0,0.0446]
[1646356866077,0.01418588,41353.0,41347.0,0.7233]
[1646356866279,0.121016,41356.0,41348.0,1.136736]
[1646356866280,0.01334548,41355.0,41348.0,1.136736]
[1646356866474,0.01334548,41355.0,41349.0,0.0446]
[1646356866674,0.45453571,41368.0,41351.0,1.318836]
[1646356866877,0.45453571,41368.0,41352.0,0.0446]
[1646356866878,0.17593067,41358.0,41352.0,0.0446]
[1646356867080,0.01388095,41356.0,41353.0,0.0446]
[1646356867275,0.060506,41356.0,41354.0,0.0446]
[1646356867674,0.060506,41356.0,41355.0,0.368836]
[1646356867875,0.21006052,41355.0,41354.0,0.0446]
[1646356868075,0.01144984,41355.0,41354.0,0.0446]
[1646356868274,0.07504833,41356.0,41354.0,0.413436]
[1646356868476,0.060506,41356.0,41355.0,0.368836]
[1646356868674,0.060506,41356.0,41353.0,0.001]
[1646356868875,0.060506,41356.0,41354.0,0.368836]
[1646356869073,0.060506,41356.0,41352.0,0.368836]
[1646356869278,0.16200928,41354.0,41351.0,0.0446]
[1646356869474,0.06094484,41353.0,41351.0,0.0446]
[1646356869727,0.368836,41352.0,41351.0,0.0446]
[1646356870020,0.0717826,41353.0,41339.0,0.9874]
[1646356870021,0.07073558,41350.0,41339.0,0.9874]
[1646356870220,0.06130169,41346.0,41340.0,0.0446]
[1646356870423,0.06130169,41346.0,41335.0,0.01209]
[1646356870424,0.009368,41343.0,41335.0,0.01209]
[1646356870620,0.01108631,41338.0,41329.0,0.7624]
[1646356870819,0.01108631,41338.0,41323.0,0.32974924]
[1646356871019,0.01108631,41338.0,41324.0,0.7233]
[1646356871220,0.01539347,41337.0,41324.0,0.7233]
[1646356871522,0.01539347,41337.0,41333.0,0.21366766]
[1646356871720,0.02401,41346.0,41333.0,0.21366766]
[1646356871920,0.060538,41335.0,41333.0,0.21366766]
[1646356872122,0.060538,41335.0,41334.0,0.368836]
[1646356872326,0.060538,41335.0,41334.0,1.092136]
[1646356872521,0.060538,41335.0,41334.0,1.136736]
[1646356872721,0.00083334,41345.0,41334.0,1.47840524]
[1646356872927,0.00083334,41345.0,41336.0,0.74731]
[1646356873123,0.00083334,41345.0,41340.0,0.7233]
[1646356873325,0.00083334,41345.0,41325.0,0.12105172]
[1646356873580,0.00083334,41345.0,41330.0,0.1]
[1646356873581,0.15,41341.0,41330.0,0.1]
[1646356873777,0.02401,41339.0,41322.0,0.4881]
[1646356873976,0.009368,41336.0,41322.0,0.4881]
[1646356874176,0.02401,41337.0,41319.0,0.2424]
[1646356874177,0.19068875,41333.0,41319.0,0.2424]
[1646356874379,0.15,41341.0,41319.0,0.2424]
[1646356874380,1.52377878,41348.0,41331.0,0.2044649]
[1646356874579,0.181644,41339.0,41331.0,1.2966009]
[1646356874779,0.181644,41339.0,41333.0,0.7233]
[1646356875092,0.01591062,41337.0,41310.0,0.001]
[1646356875283,0.181644,41339.0,41314.0,0.01323658]
[1646356875284,0.121116,41331.0,41314.0,0.01323658]
[1646356875481,0.121116,41331.0,41320.0,0.74731]
[1646356875482,0.060558,41330.0,41320.0,0.74731]
[1646356875679,0.01444688,41335.0,41325.0,0.7233]
[1646356875877,0.00083334,41338.0,41323.0,0.02423055]
[1646356875878,0.00083334,41338.0,41331.0,0.27700523]
[1646356876278,0.00083334,41338.0,41332.0,0.368307]
[1646356876578,0.00083334,41338.0,41334.0,0.37751842]
[1646356876881,0.00083334,41338.0,41337.0,0.368307]
[1646356877079,0.00083334,41338.0,41337.0,1.42060559]
[1646356877316,0.00083334,41338.0,41337.0,1.55288578]
[1646356877513,0.00083334,41338.0,41337.0,1.55498548]
[1646356877718,0.00083334,41338.0,41337.0,0.512907]
[1646356877917,0.00083334,41338.0,41337.0,0.412907]
[1646356878115,0.00083334,41338.0,41337.0,0.0446]
[1646356878519,0.00083334,41343.0,41337.0,0.412907]
[1646356878918,0.00083334,41343.0,41337.0,1.136207]
[1646356879322,0.00083334,41343.0,41340.0,0.368307]
[1646356879520,0.00083334,41343.0,41341.0,0.79191]
[1646356879716,0.00083334,41343.0,41342.0,1.191607]
[1646356879916,0.00083334,41343.0,41342.0,1.236207]
[1646356880120,0.00083334,41343.0,41342.0,1.255217]
[1646356880323,0.00083334,41343.0,41342.0,1.73243362]
[1646356880324,3.34e-06,41343.0,41342.0,1.73243362]
[1646356880519,3.34e-06,41343.0,41342.0,1.59073362]
[1646356880718,3.34e-06,41343.0,41342.0,1.73243362]
[1646356880973,0.14690397,41370.0,41342.0,1.73243362]
[1646356880974,0.05,41356.0,41346.0,0.01412328]
[1646356881171,0.13198724,41370.0,41348.0,0.01667586]
[1646356881371,0.13198724,41370.0,41350.0,0.01343495]
[1646356881577,0.13198724,41370.0,41354.0,0.74731]
[1646356881772,0.13198724,41370.0,41363.0,0.2433815]
[1646356881974,0.13198724,41370.0,41364.0,1.40921832]
[1646356882177,0.13198724,41370.0,41366.0,0.7233]
[1646356882371,0.05,41383.0,41368.0,0.7233]
[1646356882572,0.05,41383.0,41367.0,0.83051832]
[1646356882573,0.05,41383.0,41370.0,0.7233]
[1646356882772,0.05,41383.0,41379.0,0.26005569]
[1646356882978,0.01,41384.0,41379.0,1.00798983]
[1646356883175,0.4935,41392.0,41379.0,1.00798983]
[1646356883176,0.01263059,41402.0,41382.0,1.35]
[1646356883377,0.24182252,41422.0,41384.0,0.01609237]
[1646356883378,0.0126697,41406.0,41384.0,0.01609237]
[1646356883573,0.05,41404.0,41386.0,0.73681709]
[1646356883772,0.05,41404.0,41388.0,0.74731]
[1646356883972,0.05,41404.0,41387.0,0.83037432]
[1646356883973,0.13361952,41403.0,41395.0,0.7233]
[1646356884174,0.13361952,41403.0,41396.0,0.0446]
[1646356884372,0.01552123,41401.0,41391.0,0.0446]
[1646356884573,0.0039216,41402.0,41392.0,0.368087]
[1646356885229,0.0039216,41402.0,41391.0,0.7679]
[1646356885230,0.01508609,41401.0,41391.0,0.7679]
[1646356885429,0.01508609,41401.0,41392.0,0.368087]
[1646356885734,0.01508609,41401.0,41392.0,0.0446]
[1646356885735,0.060452,41398.0,41392.0,0.0446]
[1646356885930,0.060452,41398.0,41372.0,0.7276]
[1646356885931,0.03518228,41394.0,41380.0,0.12090423]
[1646356886129,0.02401,41390.0,41380.0,0.12090423]
[1646356886330,0.02401,41390.0,41365.0,0.24179297]
[1646356886331,0.02401,41388.0,41372.0,0.26848505]
[1646356886527,0.01057786,41387.0,41372.0,0.26848505]
[1646356886729,0.21410153,41382.0,41373.0,0.368087]
[1646356886927,0.21410153,41382.0,41374.0,0.0446]
[1646356887328,0.0039216,41387.0,41381.0,0.2388058]
[1646356887531,0.0039216,41393.0,41384.0,0.7233]
[1646356887728,0.0039216,41393.0,41386.0,0.7233]
[1646356887933,0.391871,41409.0,41386.0,0.7233]
[1646356887934,0.060455,41398.0,41388.0,0.7233]
[1646356888131,0.06199928,41403.0,41390.0,0.92784509]
[1646356888132,0.05,41403.0,41390.0,0.92784509]
[1646356888335,0.05,41403.0,41398.0,0.74731]
[1646356888570,0.05,41414.0,41402.0,0.7233]
[1646356888769,0.0136358,41414.0,41403.0,0.412687]
[1646356888969,0.4671,41415.0,41403.0,0.368087]
[1646356888970,0.01148114,41413.0,41403.0,0.368087]
[1646356889171,0.01433932,41414.0,41403.0,0.368087]
[1646356889368,0.21146862,41410.0,41405.0,0.368087]
[1646356889567,0.19667695,41410.0,41405.0,0.00988166]
[1646356889768,0.19667695,41410.0,41404.0,0.00932026]
[1646356889969,0.01480117,41409.0,41404.0,0.0446]
[1646356890170,0.01480117,41409.0,41404.0,0.04327]
[1646356890369,0.02401,41405.0,41404.0,0.04327]
[1646356890568,0.03719828,41405.0,41404.0,0.04327]
[1646356890768,0.67680546,41405.0,41404.0,0.04327]
[1646356890978,0.02401,41399.0,41396.0,0.0446]
[1646356891175,1.11303248,41403.0,41386.0,0.01219053]
[1646356891176,0.084474,41395.0,41386.0,0.01219053]
[1646356891473,0.084474,41395.0,41362.0,0.001]
[1646356891474,0.02401,41389.0,41362.0,0.001]
[1646356891669,0.02401,41389.0,41370.0,0.21117435]
[1646356891670,0.02401,41385.0,41370.0,0.21117435]
[1646356891868,0.02401,41379.0,41375.0,0.2064001]
[1646356892069,0.01367669,41379.0,41375.0,0.2064001]
[1646356892322,0.060467,41393.0,41378.0,1.091387]
[1646356892523,0.01118396,41391.0,41378.0,0.01147985]
[1646356892720,0.01033919,41390.0,41379.0,0.01231846]
[1646356892920,0.01377803,41389.0,41376.0,0.368087]
[1646356893119,0.20146019,41383.0,41376.0,0.368087]
[1646356893319,0.060467,41393.0,41376.0,0.38055572]
[1646356893320,0.055467,41393.0,41376.0,0.38055572]
[1646356893525,0.01063709,41391.0,41377.0,0.01016384]
[1646356893718,0.055467,41393.0,41377.0,0.01076921]
[1646356893719,0.01086653,41390.0,41377.0,0.01076921]
[1646356893920,0.01343369,41389.0,41378.0,0.01278943]
[1646356894119,0.01343369,41389.0,41379.0,0.01327974]
[1646356894323,0.01343369,41389.0,41375.0,0.2064001]
[1646356894324,0.02401,41392.0,41375.0,0.21967432]
[1646356894526,0.27244703,41383.0,41376.0,0.01162854]
[1646356894722,0.27244703,41383.0,41377.0,0.01320528]
[1646356894921,0.01340497,41382.0,41371.0,0.01512194]
[1646356895220,0.01340497,41382.0,41372.0,0.00985365]
[1646356895221,0.02401,41382.0,41372.0,0.00985365]
[1646356895419,0.03463912,41382.0,41373.0,0.01254588]
[1646356895619,0.03463912,41382.0,41359.0,0.98176371]
[1646356895620,0.01062912,41382.0,41374.0,0.01365663]
[1646356895820,0.01062912,41382.0,41375.0,0.01276191]
[1646356895821,0.1,41382.0,41375.0,0.01276191]
[1646356896092,0.060481,41383.0,41376.0,0.37746083]
[1646356896291,0.060466,41392.0,41377.0,0.73443528]
[1646356896490,0.0136178,41394.0,41379.0,0.7233]
[1646356896687,0.05,41395.0,41380.0,1.14994845]
[1646356896890,0.485,41402.0,41392.0,0.7233]
[1646356897091,0.18423357,41403.0,41393.0,0.0110559]
[1646356897288,0.120885,41410.0,41395.0,0.7233]
[1646356897491,1.1764,41432.0,41399.0,0.88997135]
[1646356897492,0.8988,41422.0,41399.0,0.88997135]
[1646356897689,0.4561,41424.0,41404.0,0.01205448]
[1646356897888,0.47001177,41429.0,41407.0,1.11350217]
[1646356898090,0.16879624,41423.0,41411.0,0.73460345]
[1646356898295,0.01219882,41422.0,41412.0,0.42563914]
[1646356898490,0.01219882,41422.0,41414.0,0.368087]
[1646356898491,0.01219826,41422.0,41414.0,0.368087]
[1646356898692,0.01219826,41422.0,41414.0,0.37942819]
[1646356898895,0.4847,41440.0,41416.0,0.43921149]
[1646356899089,0.51804175,41447.0,41416.0,0.43921149]
[1646356899090,0.01499875,41435.0,41417.0,0.05372885]
[1646356899291,0.08029958,41430.0,41418.0,0.00909747]
[1646356899492,0.02401,41429.0,41419.0,0.05595126]
[1646356899717,0.02401,41429.0,41420.0,0.01122186]
[1646356899916,0.02401,41422.0,41414.0,0.00932858]
[1646356900116,0.01498468,41429.0,41420.0,0.0446]
[1646356900117,0.3815593,41429.0,41420.0,0.0446]
[1646356900320,0.392097,41425.0,41417.0,0.0446]
[1646356900521,0.02401,41417.0,41412.0,0.004]
[1646356900718,0.060421,41423.0,41412.0,0.004]
[1646356900719,0.368087,41414.0,41412.0,0.004]
[1646356900922,0.01128829,41421.0,41412.0,0.004]
[1646356901120,0.060421,41423.0,41411.0,0.31467368]
[1646356901335,0.01144587,41425.0,41412.0,0.392097]
[1646356901621,0.01144587,41425.0,41411.0,0.31467368]
[1646356901622,0.01255374,41434.0,41415.0,0.3788061]
[1646356901820,0.20010711,41430.0,41416.0,0.32744495]
[1646356902020,0.05,41435.0,41417.0,0.4236545]
[1646356902219,0.2174326,41431.0,41418.0,0.01173227]
[1646356902422,0.02401,41429.0,41419.0,0.00900821]
[1646356902619,0.02401,41429.0,41420.0,0.0110603]
[1646356902821,0.02401,41429.0,41415.0,0.05559101]
[1646356902822,0.368087,41428.0,41415.0,0.05559101]
[1646356903023,0.22674221,41417.0,41408.0,0.21744667]
[1646356903220,0.02401,41417.0,41409.0,0.0446]
[1646356903475,0.20971543,41415.0,41409.0,0.0446]
[1646356903668,0.02401,41417.0,41409.0,0.0446]
[1646356903871,0.02401,41417.0,41410.0,0.01010304]
[1646356904068,0.060428,41418.0,41411.0,0.01049883]
[1646356904269,0.060428,41418.0,41413.0,0.368087]
[1646356904471,0.110418,41426.0,41408.0,1.10530216]
[1646356904670,0.02401,41424.0,41409.0,0.01111845]
[1646356904868,0.02401,41424.0,41410.0,0.38186516]
[1646356905068,0.02401,41424.0,41410.0,0.3814906]
[1646356905269,0.02401,41424.0,41417.0,0.22359281]
[1646356905570,0.060421,41421.0,41412.0,0.01305293]
[1646356905769,0.15877535,41425.0,41414.0,0.368087]
[1646356905968,0.15877535,41425.0,41414.0,0.37847823]
[1646356906168,0.05,41426.0,41414.0,0.37847823]
[1646356906169,0.05,41426.0,41415.0,0.01161105]
[1646356906368,0.01400812,41427.0,41424.0,0.20541548]
[1646356906575,0.05,41435.0,41424.0,0.20541548]
[1646356906576,0.013946,41429.0,41425.0,0.368087]
[1646356906969,0.01456386,41429.0,41417.0,0.10954654]
[1646356907218,0.06085911,41427.0,41418.0,0.01125693]
[1646356907420,0.01370482,41426.0,41411.0,0.00995868]
[1646356907617,0.20711318,41422.0,41405.0,0.7283]
[1646356907817,0.02401,41421.0,41413.0,0.01181383]
[1646356908017,0.02401,41419.0,41412.0,0.01291107]
[1646356908219,0.02401,41419.0,41407.0,0.32114391]
[1646356908421,0.1870414,41409.0,41408.0,0.05525181]
[1646356908622,0.1870414,41409.0,41405.0,0.005]
[1646356908623,0.123534,41408.0,41405.0,0.005]
[1646356908820,0.01478594,41407.0,41405.0,0.005]
[1646356909019,0.392097,41406.0,41405.0,0.005]
[1646356909225,0.1,41408.0,41398.0,0.29712409]
[1646356909417,0.1,41408.0,41399.0,0.01136375]
[1646356909718,0.1,41408.0,41398.0,0.28688267]
[1646356909917,0.01040693,41413.0,41398.0,0.28688267]
[1646356910117,0.20615166,41408.0,41398.0,0.28688267]
[1646356910321,0.02401,41407.0,41398.0,0.01145671]
[1646356910519,0.03597205,41407.0,41399.0,0.0131836]
[1646356910719,0.11071734,41407.0,41394.0,0.3191735]
[1646356910976,0.1,41415.0,41401.0,0.38151658]
[1646356911169,0.1,41415.0,41402.0,0.32170357]
[1646356911374,0.12401,41415.0,41404.0,0.368087]
[1646356911573,0.13541544,41415.0,41404.0,0.37949682]
[1646356911774,0.13541544,41415.0,41405.0,0.00995418]
[1646356911775,0.19924444,41414.0,41405.0,0.00995418]
[1646356911970,0.19924444,41414.0,41406.0,0.37983543]
[1646356912174,0.368087,41413.0,41403.0,0.01054876]
[1646356912374,0.02401,41410.0,41403.0,0.01151527]
[1646356912572,0.2566211,41409.0,41404.0,0.01196719]
[1646356912771,0.2566211,41409.0,41402.0,0.004]
[1646356912772,0.17447003,41408.0,41405.0,0.00947425]
[1646356912970,0.17447003,41408.0,41402.0,0.01408387]
[1646356913171,0.18493896,41407.0,41403.0,0.01337613]
[1646356913371,0.452538,41406.0,41396.0,0.31856919]
[1646356913573,0.01234216,41405.0,41397.0,0.01296752]
[1646356913772,0.01234216,41405.0,41398.0,0.368087]
[1646356913971,0.09546814,41406.0,41398.0,0.01262019]
[1646356914172,0.084451,41406.0,41399.0,0.37963915]
[1646356914375,0.22935849,41405.0,41400.0,0.01079048]
[1646356914571,0.22935849,41405.0,41401.0,0.0098211]
[1646356914572,0.02401,41405.0,41401.0,0.0098211]
[1646356914813,0.02401,41405.0,41395.0,0.21511071]
[1646356914814,0.03706203,41405.0,41402.0,0.37897579]
[1646356915013,0.03706203,41405.0,41403.0,0.0090291]
[1646356915215,0.03706203,41405.0,41395.0,0.22892229]
[1646356915216,0.13706203,41405.0,41395.0,0.22892229]
[1646356915415,0.060441,41406.0,41396.0,1.10372452]
[1646356915615,0.060441,41406.0,41397.0,1.10245957]
[1646356915816,0.01151287,41417.0,41398.0,0.78372755]
[1646356915817,0.060428,41413.0,41398.0,0.78372755]
[1646356916017,0.07320279,41412.0,41399.0,0.01267157]
[1646356916217,0.07392151,41413.0,41395.0,0.01823512]
[1646356916218,0.368087,41409.0,41395.0,0.01823512]
[1646356916416,0.02401,41405.0,41396.0,0.00919056]
[1646356916616,0.02401,41401.0,41396.0,0.01142561]
[1646356916816,0.120909,41406.0,41395.0,0.005]
[1646356916817,0.02401,41399.0,41395.0,0.01795057]
[1646356917022,0.368087,41402.0,41395.0,0.2761412]
[1646356917215,0.368087,41400.0,41395.0,0.2711412]
[1646356917416,0.368087,41400.0,41395.0,0.01353455]
[1646356917718,0.368087,41404.0,41387.0,0.7233]
[1646356917918,0.53883657,41405.0,41395.0,0.001]
[1646356918117,0.1,41403.0,41395.0,0.001]
[1646356918318,0.03456145,41402.0,41395.0,0.001]
[1646356918565,0.11361046,41403.0,41396.0,0.00937248]
[1646356918762,0.11361046,41403.0,41397.0,0.00977593]
[1646356918763,0.1,41403.0,41397.0,0.00977593]
[1646356918962,0.061455,41405.0,41395.0,0.001]
[1646356919166,0.30945402,41411.0,41395.0,0.001]
[1646356919167,0.110433,41413.0,41397.0,0.7233]
[1646356919366,0.110433,41413.0,41395.0,0.12085854]
[1646356919367,0.05,41413.0,41399.0,0.7233]